bitfinex-derivatives/quotes_ETHF0:USTF0_20240817
["timestamp","ask_amount","ask_price","bid_price","bid_amount"]
[1723863352770,2.27732,2600.6,2600.5,0.01040514]
[1723863353356,8.04494,2600.6,2600.5,0.01040514]
[1723863353557,1.92224,2600.3,2600.0,2.5181484]
[1723863353764,1.92224,2600.3,2599.6,7.89977533]
[1723863353765,1.92254,2599.9,2599.8,1.0080832]
[1723863353965,1.92268,2599.7,2599.6,1.3562832]
[1723863354165,3.03068,2599.7,2599.6,1.3562832]
[1723863354465,3.03068,2599.7,2599.6,0.3482]
[1723863354666,3.03562923,2599.7,2599.6,0.35165158]
[1723863355272,6.24342923,2599.7,2599.6,0.00345158]
[1723863355474,10.80282923,2599.7,2599.6,0.00345158]
[1723863355974,12.72550923,2599.7,2599.6,0.00345158]
[1723863356363,12.72550923,2599.7,2599.4,0.00577256]
[1723863356559,3.03083,2599.5,2599.4,0.00577256]
[1723863357371,3.03083,2599.5,2599.4,0.00962195]
[1723863357372,8.80086,2599.5,2599.4,0.00962195]
[1723863358881,6.87803,2599.5,2599.4,0.00962195]
[1723863361687,8.97783,2599.5,2599.4,0.00962195]
[1723863361980,10.08583,2599.5,2599.4,0.00962195]
[1723863362684,6.87803,2599.5,2599.4,0.00962195]
[1723863363073,10.08583,2599.5,2599.4,0.00962195]
[1723863363386,17.00866,2599.5,2599.4,0.00962195]
[1723863363688,17.00866,2599.5,2599.0,0.3784]
[1723863363689,1.92313,2599.1,2599.0,0.3784]
[1723863363875,3.03113,2599.1,2599.0,0.3784]
[1723863364275,3.37483,2599.1,2599.0,0.3784]
[1723863364685,3.37483,2599.1,2599.0,0.3826421]
[1723863383800,3.03113,2599.1,2599.0,0.3826421]
[1723863397006,3.39923,2599.1,2599.0,0.3826421]
[1723863397510,1.92313,2599.1,2599.0,4.2298421]
[1723863397710,3.03113,2599.1,2599.0,4.2298421]
[1723863398696,3.03113,2599.1,2599.0,0.3826421]
[1723863400512,3.03113,2599.1,2599.0,0.0042421]
[1723863405610,6.23893,2599.1,2599.0,0.0042421]
[1723863407008,3.03113,2599.1,2599.0,0.0042421]
[1723863407206,6.23893,2599.1,2599.0,0.0042421]
[1723863408512,3.03113,2599.1,2599.0,0.0042421]
[1723863409306,6.23893,2599.1,2599.0,0.0042421]
[1723863410010,3.03113,2599.1,2599.0,0.0042421]
[1723863410212,6.23893,2599.1,2599.0,0.0042421]
[1723863410619,3.03113,2599.1,2599.0,0.0042421]
[1723863410917,6.23893,2599.1,2599.0,0.0042421]
[1723863414819,5.13093,2599.1,2599.0,0.0042421]
[1723863415013,6.23893,2599.1,2599.0,0.0042421]
[1723863416012,3.03113,2599.1,2599.0,0.0042421]
[1723863416226,6.23893,2599.1,2599.0,0.0042421]
[1723863416917,3.03113,2599.1,2599.0,0.0042421]
[1723863417420,6.23893,2599.1,2599.0,0.0042421]
[1723863418517,3.03113,2599.1,2599.0,0.0042421]
[1723863418714,6.23893,2599.1,2599.0,0.0042421]
[1723863423927,3.03113,2599.1,2599.0,0.0042421]
[1723863424118,6.23893,2599.1,2599.0,0.0042421]
[1723863429021,3.03113,2599.1,2599.0,0.0042421]
[1723863429430,6.23893,2599.1,2599.0,0.0042421]
[1723863439027,3.03113,2599.1,2599.0,0.0042421]
[1723863439229,6.23893,2599.1,2599.0,0.0042421]
[1723863439631,3.03113,2599.1,2599.0,0.0042421]
[1723863439836,6.23893,2599.1,2599.0,0.0042421]
[1723863440931,3.03113,2599.1,2599.0,0.0042421]
[1723863441132,6.23893,2599.1,2599.0,0.0042421]
[1723863441536,6.95023,2599.1,2599.0,0.0042421]
[1723863442732,6.59813,2599.1,2599.0,0.0042421]
[1723863443530,0.3681,2599.2,2599.0,1.01337024]
[1723863443729,1.108,2599.1,2599.0,2.93654024]
[1723863444139,1.108,2599.1,2599.0,8.70731063]
[1723863444537,1.108,2599.1,2599.0,8.70732631]
[1723863444731,1.108,2599.1,2599.0,6.78374024]
[1723863453049,1.108,2599.1,2599.0,4.86057024]
[1723863453645,1.108,2599.1,2599.0,6.78377024]
[1723863454544,1.108,2599.1,2599.0,2.93657024]
[1723863458151,1.108,2599.1,2599.0,1.01337024]
[1723863458347,1.108,2599.1,2599.0,4.86016503]
[1723863458647,1.108,2599.1,2599.0,1.01337024]
[1723863458847,1.108,2599.1,2599.0,4.86057024]
[1723863459147,1.108,2599.1,2599.0,6.78377024]
[1723863459447,1.108,2599.1,2599.0,6.78414415]
[1723863459644,1.108,2599.1,2599.0,8.70734415]
[1723863459837,1.108,2599.1,2599.0,4.86057024]
[1723863460243,1.108,2599.1,2599.0,6.78415093]
[1723863460439,1.108,2599.1,2599.0,5.77502279]
[1723863460644,1.108,2599.1,2599.0,7.28871501]
[1723863461143,1.108,2599.1,2599.0,6.78397024]
[1723863461444,1.108,2599.1,2599.0,7.15327024]
[1723863462551,1.108,2599.1,2599.0,7.15325291]
[1723863463444,1.108,2599.1,2599.0,2.93675291]
[1723863463445,6.23893,2599.1,2599.0,2.93675291]
[1723863463645,6.60583,2599.1,2599.0,0.0042421]
[1723863466444,6.60583,2599.1,2598.8,0.00577256]
[1723863466445,1.92327,2598.9,2598.8,0.00577256]
[1723863466642,3.03127,2598.9,2598.8,0.00577256]
[1723863466848,3.39977,2598.9,2598.8,0.00577256]
[1723863467450,3.39977,2598.9,2598.8,0.00887875]
[1723863479262,5.32304,2598.9,2598.8,0.00887875]
[1723863481972,3.39977,2598.9,2598.8,0.00887875]
[1723863482178,5.32321,2598.9,2598.8,0.00887875]
[1723863483169,8.53101,2598.9,2598.8,0.00887875]
[1723863492290,1.92357,2598.5,2598.4,0.3781]
[1723863492584,3.03157,2598.5,2598.4,0.3781]
[1723863493288,3.03157,2598.5,2598.4,0.38181423]
[1723863493486,8.16294,2598.5,2598.4,0.00371423]
[1723863493683,6.23937,2598.5,2598.4,0.00371423]
[1723863497587,3.2078,2598.5,2598.4,0.00371423]
[1723863497791,4.3158,2598.5,2598.4,0.00371423]
[1723863498300,4.3158,2598.5,2598.4,0.34791423]
[1723863498790,1.108,2598.5,2598.4,0.34791423]
[1723863499982,3.03157,2598.5,2598.4,0.34791423]
[1723863500886,4.95514,2598.5,2598.4,0.00371423]
[1723863501089,5.29824,2598.5,2598.4,0.00371423]
[1723863501294,5.65684,2598.5,2598.4,0.00371423]
[1723863502189,1.92372,2598.3,2598.2,0.00577256]
[1723863502393,8.16324,2598.3,2598.2,0.00577256]
[1723863503293,8.16324,2598.3,2598.2,0.00943164]
[1723863503497,12.01204,2598.3,2598.2,0.00943164]
[1723863505893,6.23952,2598.3,2598.2,0.00943164]
[1723863506200,10.08832,2598.3,2598.2,0.00943164]
[1723863507699,6.88052,2598.3,2598.2,0.00943164]
[1723863508593,7.25102,2598.3,2598.2,0.00943164]
[1723863510398,3.40222,2598.3,2598.2,0.00943164]
[1723863512896,5.32594,2598.3,2598.2,0.00943164]
[1723863513697,8.53374,2598.3,2598.2,0.00943164]
[1723863514604,12.38254,2598.3,2598.2,0.00943164]
[1723863515594,1.92401,2597.9,2597.8,0.7407]
[1723863515797,3.03201,2597.9,2597.8,0.7407]
[1723863516292,3.39171,2597.9,2597.8,0.7407]
[1723863516493,3.39171,2597.9,2597.8,0.74551216]
[1723863526201,5.1317,2598.1,2597.8,0.74551216]
[1723863526405,3.2078,2598.1,2597.9,1.92399]
[1723863526906,3.2078,2598.1,2598.0,0.3565]
[1723863527811,4.3158,2598.1,2598.0,0.3565]
[1723863528909,4.3158,2598.1,2597.8,0.74551216]
[1723863529114,3.03201,2597.9,2597.8,0.74551216]
[1723863531011,3.03201,2597.9,2597.8,0.37031216]
[1723863535220,0.3632,2598.0,2597.8,0.37031216]
[1723863535513,1.108,2597.9,2597.8,0.37031216]
[1723863536110,3.03202,2597.9,2597.8,0.37031216]
[1723863538008,1.108,2597.9,2597.8,0.37031216]
[1723863538404,3.03202,2597.9,2597.8,0.37031216]
[1723863541816,1.108,2597.9,2597.8,0.37031216]
[1723863542219,1.108,2597.9,2597.8,0.72531216]
[1723863544530,1.108,2597.9,2597.8,2.64940216]
[1723863545425,1.108,2597.9,2597.8,0.72531216]
[1723863545926,1.9238,2598.2,2597.8,0.72531216]
[1723863546230,1.92387,2598.1,2597.9,0.3782]
[1723863548222,0.3731,2598.3,2597.9,0.3782]
[1723863548427,1.108,2598.0,2597.9,0.3782]
[1723863550331,1.108,2598.0,2597.9,4.227]
[1723863551730,0.3731,2598.3,2597.9,7.15995745]
[1723863551950,0.00577256,2598.5,2598.1,1.00894745]
[1723863552226,1.108,2598.3,2598.2,1.71204745]
[1723863552429,1.108,2598.3,2598.2,5.88026713]
[1723863552630,1.108,2598.3,2598.2,9.72906713]
[1723863553321,1.108,2598.3,2598.2,8.72011968]
[1723863555738,2.30125,2598.4,2598.2,8.72011968]
[1723863555934,2.30125,2598.4,2598.3,0.3698]
[1723863556135,3.40925,2598.4,2598.3,0.3698]
[1723863556436,3.40925,2598.4,2598.3,4.2186]
[1723863558639,3.40925,2598.4,2598.3,0.3698]
[1723863559228,3.40925,2598.4,2598.3,4.2186]
[1723863559428,3.40925,2598.4,2598.3,0.3698]
[1723863560230,3.40925,2598.4,2598.3,4.2186]
[1723863560736,3.40925,2598.4,2598.3,0.3698]
[1723863561834,3.40925,2598.4,2598.3,4.2186]
[1723863562641,3.40925,2598.4,2598.3,0.3698]
[1723863562942,3.40925,2598.4,2598.3,4.2186]
[1723863563146,3.40925,2598.4,2598.3,0.3698]
[1723863563438,3.40925,2598.4,2598.3,4.2186]
[1723863565139,3.40925,2598.4,2598.3,0.3698]
[1723863565339,3.40925,2598.4,2598.3,4.2186]
[1723863565541,3.40925,2598.4,2598.3,0.3698]
[1723863566242,3.40925,2598.4,2598.3,4.2186]
[1723863566956,1.108,2598.4,2598.3,4.2186]
[1723863570748,3.03164,2598.4,2598.3,4.2186]
[1723863570943,1.108,2598.4,2598.3,4.2186]
[1723863571346,1.108,2598.4,2598.3,0.3698]
[1723863572742,3.03164,2598.4,2598.3,0.3698]
[1723863573139,0.36317256,2598.5,2598.3,2.29351]
[1723863573449,1.108,2598.4,2598.3,0.3698]
[1723863576352,3.03164,2598.4,2598.3,0.3698]
[1723863576946,1.108,2598.4,2598.3,0.3698]
[1723863579840,3.03164,2598.4,2598.3,0.3698]
[1723863580445,1.108,2598.4,2598.3,0.3698]
[1723863583844,3.03164,2598.4,2598.3,0.3698]
[1723863584250,1.108,2598.4,2598.3,0.3698]
[1723863590063,1.108,2598.4,2598.3,1.37874745]
[1723863591768,1.11377256,2598.5,2598.4,1.92364]
[1723863592060,0.00577256,2598.5,2598.4,2.93258745]
[1723863592261,0.00577256,2598.5,2598.4,5.77244]
[1723863592464,0.00577256,2598.5,2598.4,6.78138745]
[1723863594065,0.00577256,2598.5,2598.4,8.7053346]
[1723863594264,0.00577256,2598.5,2598.4,9.21007937]
[1723863596367,0.00577256,2598.5,2598.4,9.21007824]
[1723863596763,0.00577256,2598.5,2598.4,13.5888846]
[1723863596968,0.00577256,2598.5,2598.4,12.07519238]
[1723863597367,0.00577256,2598.5,2598.4,14.09344867]
[1723863597562,0.00577256,2598.5,2598.4,17.94116869]
[1723863598273,0.00577256,2598.5,2598.4,14.09344867]
[1723863598677,0.00577256,2598.5,2598.4,17.94116307]
[1723863599273,0.00577256,2598.5,2598.4,14.09344867]
[1723863599671,0.00577256,2598.5,2598.4,15.20144867]
[1723863599874,0.3422,2598.8,2598.7,1.92342]
[1723863600167,0.3422,2598.8,2598.7,8.80336602]
[1723863600372,0.3422,2598.8,2598.7,10.31615381]
[1723863600567,0.3422,2598.8,2598.7,8.39220779]
[1723863600773,0.3422,2598.8,2598.7,10.31593514]
[1723863600976,0.3422,2598.8,2598.7,10.66633514]
[1723863601374,0.00577256,2599.0,2598.9,1.92327]
[1723863601578,0.00577256,2599.0,2598.9,13.52340517]
[1723863602274,0.00577256,2599.0,2598.9,13.88950517]
[1723863602474,0.00577256,2599.0,2598.9,18.21678372]
[1723863602679,0.00577256,2599.0,2598.9,16.70399593]
[1723863603077,0.00577256,2599.0,2598.9,18.72104632]
[1723863603281,0.3687,2599.1,2599.0,1.9232]
[1723863603477,0.3687,2599.1,2599.0,3.84674738]
[1723863603784,0.3687,2599.1,2599.0,9.57964341]
[1723863603982,0.3687,2599.1,2599.0,9.57951078]
[1723863604179,0.3687,2599.1,2599.0,9.07547568]
[1723863605278,0.3687,2599.1,2599.0,9.07544534]
[1723863605485,0.3687,2599.1,2599.0,7.15206093]
[1723863605879,0.3687,2599.1,2599.0,2.2979]
[1723863606080,0.3687,2599.1,2599.0,0.3747]
[1723863606277,5.49966,2599.1,2598.8,2.93026093]
[1723863606578,1.8584,2599.0,2598.8,2.93026093]
[1723863606787,1.8584,2599.0,2598.7,1.35736093]
[1723863606985,3.78163,2599.0,2598.7,3.28075093]
[1723863607184,1.8584,2599.0,2598.8,6.22508505]
[1723863608080,1.8584,2599.0,2598.8,7.23204598]
[1723863608280,1.8584,2599.0,2598.8,6.22508505]
[1723863608993,1.8584,2599.0,2598.8,7.23204598]
[1723863609179,1.8584,2599.0,2598.8,6.22508505]
[1723863610483,1.108,2599.0,2598.9,1.92327]
[1723863610689,0.3687,2599.1,2599.0,1.9232]
[1723863610888,0.3687,2599.1,2599.0,2.2875]
[1723863613585,3.39986,2599.1,2598.8,2.93027093]
[1723863613786,3.39986,2599.1,2598.8,1.92331]
[1723863614295,3.39986,2599.1,2598.7,2.46536093]
[1723863614479,1.4822,2599.0,2598.8,1.92331]
[1723863614683,0.3469,2598.9,2598.8,6.27202348]
[1723863615798,0.3469,2598.9,2598.8,4.34871348]
[1723863615983,0.3469,2598.9,2598.8,6.27206348]
[1723863616687,1.4767,2599.1,2598.9,1.92327]
[1723863617188,1.4767,2599.1,2598.8,4.03828093]
[1723863617492,1.4767,2599.1,2598.9,1.92324]
[1723863618993,3.39984,2599.1,2598.8,1.9233]
[1723863619989,1.92321,2599.0,2598.7,4.38874093]
[1723863620196,3.39987,2599.1,2598.8,1.92332]
[1723863620485,3.39987,2599.1,2598.8,6.11965216]
[1723863621285,3.39987,2599.1,2598.8,4.19633216]
[1723863621992,3.39987,2599.1,2598.8,5.20329309]
[1723863622196,3.39987,2599.1,2598.8,4.19633216]
[1723863622386,3.39987,2599.1,2598.8,6.11963216]
[1723863624293,3.03127,2598.9,2598.8,4.19633216]
[1723863624492,1.92355,2598.6,2598.4,6.39296093]
[1723863624693,3.03127,2598.9,2598.3,1.00696093]
[1723863624694,1.4704,2598.5,2598.3,1.00696093]
[1723863624899,0.7117,2598.4,2598.2,2.26536]
[1723863625494,0.7117,2598.4,2598.2,0.3416]
[1723863625495,2.63537,2598.4,2598.2,0.3416]
[1723863625698,1.108,2598.3,2597.9,3.29447093]
[1723863625900,3.03183,2598.2,2597.9,2.28751]
[1723863626100,3.03183,2598.2,2598.0,4.08642797]
[1723863626395,0.3564,2598.1,2598.0,4.08642797]
[1723863628089,0.3564,2598.1,2598.0,6.01036797]
[1723863628901,0.3564,2598.1,2598.0,4.08642797]
[1723863629301,0.3564,2598.1,2598.0,6.01036797]
[1723863632298,0.3564,2598.1,2598.0,4.08642797]
[1723863634794,0.3564,2598.1,2598.0,6.01036797]
[1723863635907,0.3564,2598.1,2598.0,6.36876797]
[1723863636090,0.3564,2598.1,2598.0,1.92394]
[1723863637205,0.3564,2598.1,2597.9,2.28748]
[1723863637406,0.3564,2598.1,2597.9,0.3635]
[1723863637702,0.3564,2598.1,2597.9,2.2875]
[1723863637900,1.4644,2598.1,2597.9,2.2875]
[1723863638298,1.4644,2598.1,2597.9,1.924]
[1723863638504,1.4644,2598.1,2598.0,1.92394]
[1723863638801,1.4644,2598.1,2597.8,1.81191216]
[1723863638802,1.924,2598.0,2597.8,0.70391216]
[1723863638998,1.108,2597.9,2597.8,0.34641216]
[1723863639596,3.37405,2598.0,2597.8,2.27048216]
[1723863645002,3.03195,2598.0,2597.8,2.27048216]
[1723863647703,6.88161,2597.9,2597.8,0.00481216]
[1723863647913,7.23081,2597.9,2597.8,0.00481216]
[1723863650511,6.88161,2597.9,2597.8,0.00481216]
[1723863655611,13.80563,2597.9,2597.8,0.00481216]
[1723863655917,3.03216,2597.7,2597.6,0.00577256]
[1723863656221,6.23996,2597.7,2597.6,0.00577256]
[1723863656518,10.08956,2597.7,2597.6,0.00577256]
[1723863656820,10.47063133,2597.7,2597.6,0.00878176]
[1723863658813,7.26283133,2597.7,2597.6,0.00878176]
[1723863661317,10.47063133,2597.7,2597.6,0.00878176]
[1723863665725,1.92439,2597.4,2597.3,0.3759]
[1723863666027,6.24019,2597.4,2597.3,0.3759]
[1723863666717,6.24019,2597.4,2597.3,0.38011759]
[1723863667323,3.03239,2597.4,2597.3,0.38011759]
[1723863672720,10.09059,2597.4,2597.3,0.00421759]
[1723863673412,11.16229,2597.4,2597.3,0.00421759]
[1723863674027,6.12839,2597.4,2597.3,0.00421759]
[1723863674219,7.23639,2597.4,2597.3,0.00421759]
[1723863674627,7.23639,2597.4,2597.3,0.36141759]
[1723863679527,3.2078,2597.5,2597.3,0.36141759]
[1723863679730,3.03238,2597.4,2597.3,0.36141759]
[1723863683735,0.00327133,2597.7,2597.6,1.92424]
[1723863683930,1.108,2597.6,2597.3,1.36837852]
[1723863684238,1.108,2597.6,2597.4,1.92438]
[1723863684732,1.108,2597.6,2597.5,2.28471]
[1723863685637,1.108,2597.6,2597.5,0.3604]
[1723863685834,1.108,2597.6,2597.5,2.28471]
[1723863686238,1.108,2597.6,2597.5,0.3604]
[1723863686936,1.108,2597.6,2597.5,2.28471]
[1723863688043,1.108,2597.6,2597.5,0.3604]
[1723863689739,1.108,2597.6,2597.3,0.36141759]
[1723863690040,1.92439,2597.4,2597.3,0.36141759]
[1723863701460,1.108,2597.4,2597.3,0.36141759]
[1723863701957,1.108,2597.4,2597.3,0.73421759]
[1723863702858,3.03239,2597.4,2597.3,0.73421759]
[1723863703061,1.108,2597.4,2597.3,0.73421759]
[1723863706668,1.108,2597.4,2597.3,2.65867759]
[1723863706969,1.108,2597.4,2597.3,0.73421759]
[1723863708266,1.108,2597.4,2597.3,2.65867759]
[1723863708466,1.108,2597.4,2597.3,0.73421759]
[1723863709962,1.108,2597.4,2597.3,2.65867759]
[1723863710164,1.108,2597.4,2597.3,0.73421759]
[1723863713271,1.108,2597.4,2597.3,2.65867759]
[1723863713467,1.108,2597.4,2597.3,0.73421759]
[1723863715774,3.03239,2597.4,2597.3,0.73421759]
[1723863715976,1.108,2597.4,2597.3,0.73421759]
[1723863722770,1.108,2597.4,2597.3,1.74117852]
[1723863723369,1.108,2597.4,2597.3,3.66563852]
[1723863723764,1.108,2597.4,2597.3,1.74117852]
[1723863724566,0.3559,2597.5,2597.3,1.74117852]
[1723863724767,2.28798133,2597.7,2597.3,1.74117852]
[1723863724768,1.108,2597.6,2597.4,4.85605285]
[1723863724971,1.4861,2597.6,2597.4,2.93135093]
[1723863727880,1.108,2597.5,2597.4,1.00696093]
[1723863728576,1.108,2597.5,2597.3,3.66559852]
[1723863730585,0.3781,2597.6,2597.4,1.92437]
[1723863730881,1.4861,2597.6,2597.4,1.00696093]
[1723863731575,3.41034,2597.6,2597.4,1.00696093]
[1723863731778,3.41034,2597.6,2597.3,3.66558852]
[1723863731981,1.108,2597.4,2597.3,3.66558852]
[1723863732190,1.108,2597.4,2597.3,5.59037888]
[1723863732377,1.108,2597.4,2597.3,9.94481398]
[1723863732678,1.108,2597.4,2597.3,8.02002362]
[1723863732884,1.108,2597.4,2597.3,9.94477306]
[1723863733075,1.108,2597.4,2597.3,8.43377703]
[1723863733777,1.108,2597.4,2597.3,9.94771194]
[1723863737393,1.108,2597.4,2597.3,9.94776397]
[1723863739987,1.108,2597.4,2597.3,8.43382906]
[1723863740587,1.108,2597.4,2597.3,9.94776397]
[1723863741580,1.108,2597.4,2597.3,5.59285824]
[1723863741778,1.108,2597.4,2597.3,3.29564824]
[1723863741979,6.88278,2597.4,2597.3,0.00421759]
[1723863742591,7.24668,2597.4,2597.3,0.00421759]
[1723863746491,3.39628,2597.4,2597.3,1.01364677]
[1723863746895,3.39628,2597.4,2597.3,0.00421759]
[1723863748887,3.39628,2597.4,2597.3,1.01364677]
[1723863749093,3.39628,2597.4,2597.3,0.00421759]
[1723863750201,3.39628,2597.4,2597.3,1.01364677]
[1723863751494,3.39628,2597.4,2597.3,0.00421759]
[1723863753202,3.39628,2597.4,2597.3,1.01364677]
[1723863753403,3.39628,2597.4,2597.3,0.00421759]
[1723863753603,3.39628,2597.4,2597.3,1.01364677]
[1723863753794,3.39628,2597.4,2597.3,0.00421759]
[1723863754191,3.03238,2597.4,2597.3,1.01364677]
[1723863754403,3.03238,2597.4,2597.3,1.37564677]
[1723863756095,3.03238,2597.4,2597.3,0.36621759]
[1723863756501,1.108,2597.4,2597.3,3.30010677]
[1723863756694,1.108,2597.4,2597.3,5.22493302]
[1723863756898,1.108,2597.4,2597.3,1.37564677]
[1723863757097,1.108,2597.4,2597.3,1.73144677]
[1723863757294,1.108,2597.4,2597.3,3.65622403]
[1723863757609,1.108,2597.4,2597.3,1.73144677]
[1723863758506,1.108,2597.4,2597.3,2.64675132]
[1723863758800,1.108,2597.4,2597.3,2.64677415]
[1723863759005,1.108,2597.4,2597.3,1.92897415]
[1723863759206,1.108,2597.4,2597.3,1.01359173]
[1723863759512,1.108,2597.4,2597.3,0.00421759]
[1723863759809,1.846,2597.4,2597.3,1.01359173]
[1723863760211,1.846,2597.4,2597.3,0.00421759]
[1723863760399,1.846,2597.4,2597.3,1.01359173]
[1723863760602,1.846,2597.4,2597.3,0.00421759]
[1723863761307,3.77039,2597.4,2597.3,0.00421759]
[1723863761914,6.97819,2597.4,2597.3,0.00421759]
[1723863762713,3.77039,2597.4,2597.3,0.00421759]
[1723863767715,9.54518,2597.4,2597.3,0.00421759]
[1723863767915,3.03246,2597.3,2597.2,0.0446]
[1723863768223,3.41096,2597.3,2597.2,0.0446]
[1723863768808,3.41096,2597.3,2597.2,0.04803696]
[1723863769310,2.30296,2597.3,2597.2,0.00343696]
[1723863769618,3.41096,2597.3,2597.2,0.00343696]
[1723863772309,1.92431,2597.5,2597.2,0.00343696]
[1723863772510,3.03239,2597.4,2597.2,0.72233696]
[1723863772713,3.03239,2597.4,2597.3,0.3669]
[1723863773108,3.2078,2597.6,2597.5,1.92431]
[1723863773514,3.2078,2597.6,2597.5,1.00937414]
[1723863773827,4.3158,2597.6,2597.4,1.00937414]
[1723863774115,4.3158,2597.6,2597.5,0.3702]
[1723863775315,6.24004,2597.6,2597.3,4.81463905]
[1723863775521,1.108,2597.4,2597.3,1.37627414]
[1723863776018,1.4663,2597.4,2597.3,3.30109565]
[1723863777919,1.4663,2597.4,2597.3,1.37627414]
[1723863778625,1.4663,2597.4,2597.3,3.65564666]
[1723863778919,1.4663,2597.4,2597.3,2.64627252]
[1723863779123,1.4663,2597.4,2597.3,4.16020743]
[1723863779416,1.4663,2597.4,2597.3,2.64627252]
[1723863779719,1.4663,2597.4,2597.3,4.16020743]
[1723863780320,1.4663,2597.4,2597.3,2.64627252]
[1723863780624,1.4663,2597.4,2597.3,4.16020743]
[1723863780822,1.4663,2597.4,2597.3,2.64627252]
[1723863781022,1.108,2597.4,2597.3,4.16020743]
[1723863781521,1.108,2597.4,2597.3,2.64627252]
[1723863781714,1.108,2597.4,2597.3,0.7215]
[1723863781920,1.108,2597.4,2597.3,2.64628048]
[1723863782316,1.108,2597.4,2597.3,4.16021539]
[1723863782814,1.108,2597.4,2597.3,2.8899914]
[1723863783012,1.108,2597.4,2597.3,0.3669]
[1723863784620,3.03239,2597.4,2597.3,0.3669]
[1723863784810,3.03239,2597.4,2597.3,1.37605649]
[1723863785014,3.03239,2597.4,2597.3,0.3669]
[1723863786627,2.26994,2597.6,2597.3,3.30046649]
[1723863786814,1.108,2597.5,2597.3,3.30046649]
[1723863787015,1.108,2597.5,2597.4,1.38255649]
[1723863787822,1.108,2597.5,2597.4,0.3734]
[1723863788625,3.03231,2597.5,2597.4,0.3734]
[1723863788929,1.108,2597.5,2597.4,0.3734]
[1723863790332,1.92438,2597.4,2597.3,0.3669]
[1723863790525,3.03238,2597.4,2597.3,0.3669]
[1723863800443,1.108,2597.4,2597.3,0.3669]
[1723863800745,1.108,2597.4,2597.3,3.30084629]
[1723863801037,3.03239,2597.4,2597.3,3.65505468]
[1723863801543,3.03239,2597.4,2597.3,1.73025649]
[1723863801743,3.03239,2597.4,2597.3,1.77485649]
[1723863802036,3.03239,2597.4,2597.3,3.69963801]
[1723863802241,3.03239,2597.4,2597.3,1.77485649]
[1723863803434,3.03239,2597.4,2597.3,0.7657]
[1723863803642,3.03239,2597.4,2597.3,0.4115]
[1723863808845,8.80718,2597.4,2597.3,0.0446]
[1723863809038,3.77709,2597.4,2597.3,0.0446]
[1723863809239,7.62749,2597.4,2597.3,0.0446]
[1723863812348,6.14729,2597.4,2597.3,0.0446]
[1723863812846,7.25529,2597.4,2597.3,0.3951]
[1723863813442,3.40489,2597.4,2597.3,0.3951]
[1723863814654,3.03239,2597.4,2597.3,0.3951]
[1723863814844,3.03239,2597.4,2597.3,0.7506]
[1723863815753,6.24019,2597.4,2597.3,0.7506]
[1723863827950,3.03239,2597.4,2597.3,0.7506]
[1723863828150,6.24019,2597.4,2597.3,0.7506]
[1723863829956,3.03239,2597.4,2597.3,0.7506]
[1723863830159,6.24019,2597.4,2597.3,0.7506]
[1723863832656,3.03239,2597.4,2597.3,0.7506]
[1723863832857,6.24019,2597.4,2597.3,0.7506]
[1723863835967,3.03239,2597.4,2597.3,0.7506]
[1723863836165,6.24019,2597.4,2597.3,0.7506]
[1723863837454,3.03239,2597.4,2597.3,0.7506]
[1723863837662,6.24019,2597.4,2597.3,0.7506]
[1723863840780,0.00327133,2597.7,2597.3,11.52546]
[1723863840968,0.00020218,2597.7,2597.6,1.92424]
[1723863841156,0.00020218,2597.7,2597.6,10.22035455]
[1723863841463,0.00020218,2597.7,2597.6,20.69792282]
[1723863841669,0.00020218,2597.7,2597.6,23.90572282]
[1723863842362,0.00020218,2597.7,2597.6,25.92126727]
[1723863842569,0.00020218,2597.7,2597.6,25.96576727]
[1723863843276,0.00020218,2597.7,2597.6,22.11690448]
[1723863843966,0.00020218,2597.7,2597.6,22.37140448]
[1723863844276,0.00020218,2597.7,2597.6,20.35586003]
[1723863845372,0.00020218,2597.7,2597.6,21.86580342]
[1723863846473,0.00020218,2597.7,2597.6,23.79004342]
[1723863846772,0.00577256,2597.9,2597.8,3.84818]
[1723863846969,1.4782,2598.6,2598.3,1.92366]
[1723863847169,1.4782,2598.6,2598.4,3.2078]
[1723863847472,1.4782,2598.6,2598.4,5.13144]
[1723863847667,1.48156819,2598.6,2598.4,3.2078]
[1723863847971,1.48156819,2598.6,2598.5,1.92357]
[1723863848170,1.48156819,2598.6,2598.5,2.29987]
[1723863848770,0.00336819,2598.6,2598.5,9.35567]
[1723863849166,0.00336819,2598.6,2598.5,19.77136097]
[1723863855972,0.00336819,2598.6,2598.5,14.77136097]
[1723863856572,0.00336819,2598.6,2598.5,19.77136097]
[1723863856764,0.00336819,2598.6,2598.5,18.28706097]
[1723863856969,0.00336819,2598.6,2598.5,14.39506097]
[1723863861378,0.00336819,2598.6,2598.5,14.43956097]
[1723863866182,0.00336819,2598.6,2598.5,19.43956097]
[1723863868779,0.00336819,2598.6,2598.5,14.43956097]
[1723863874380,0.00336819,2598.6,2598.5,14.63617343]
[1723863875085,0.00336819,2598.6,2598.5,19.63617343]
[1723863877294,0.00336819,2598.6,2598.5,21.86744017]
[1723863877490,0.00336819,2598.6,2598.5,22.12174017]
[1723863879806,0.00336819,2598.6,2598.5,22.50734017]
[1723863880096,0.00336819,2598.6,2598.5,19.22147017]
[1723863880298,0.00336819,2598.6,2598.5,13.33156097]
[1723863880501,0.00336819,2598.6,2598.5,7.55999097]
[1723863880796,7.62496819,2598.6,2598.5,0.0445]
[1723863881392,1.92364,2598.4,2598.3,5.386]
[1723863881599,3.03164,2598.4,2598.0,6.23974]
[1723863881796,1.108,2598.5,2598.2,1.92379]
[1723863881995,1.85346819,2598.6,2598.3,3.0317]
[1723863882199,1.85346819,2598.6,2598.3,6.2395]
[1723863882396,0.74546819,2598.6,2598.4,1.108]
[1723863882600,0.74546819,2598.6,2598.4,3.03157]
[1723863883110,0.74546819,2598.6,2598.5,1.92357]
[1723863883606,4.59346819,2598.6,2598.4,1.108]